fUSD/lending_fUSD_20250117
["ID","MTS","AMOUNT","RATE_DAILY","PERIOD"]
[349256060,1737078639970,-522.64632571,0.00027272,2]
[349256061,1737078639979,-150.0,0.00027272,2]
[349256062,1737078639989,-150.0,0.00027273,2]
[349256063,1737078639999,-150.0,0.00027276,2]
[349256064,1737078640009,-200.0,0.00027276,2]
[349256065,1737078640020,-522.64632571,0.00027281,2]
[349256067,1737078640031,-522.64632571,0.00027281,2]
[349256069,1737078640041,-10577.19937327,0.00027283,2]
[349256070,1737078640052,-4218.60929359,0.00027283,2]
[349256071,1737078640061,-150.0,0.00027285,2]
[349256072,1737078640070,-10577.19937327,0.00027286,2]
[349256073,1737078640080,-1000.0,0.00027286,2]
[349256074,1737078640090,-150.0,0.00027286,2]
[349256075,1737078640100,-778.2019,0.00027287,2]
[349256076,1737078640111,-150.0,0.00027288,2]
[349256077,1737078640122,-1000.0,0.00027289,2]
[349256078,1737078640132,-200.0,0.00027289,2]
[349256079,1737078640142,-522.64632571,0.00027291,2]
[349256080,1737078640153,-150.0,0.00027293,2]
[349256081,1737078640163,-11928.68328644,0.00027294,2]
[349256082,1737078640172,-6800.3004,0.00027296,2]
[349256083,1737078640181,-150.0,0.00027296,2]
[349256084,1737078640191,-1000.0,0.00027297,2]
[349256085,1737078640200,-1488.3644,0.00027297,2]
[349256086,1737078640210,-496.7276,0.00027297,2]
[349256087,1737078640219,-27931.4646987,0.00027297,3]
[349256088,1737078640232,-17310.1087013,0.00027297,3]
[349256089,1737078640242,-5000.0,0.00027297,2]
[349256091,1737078640252,-273.65578729,0.00027297,2]
[349256093,1737078640261,-177.13958532,0.00027297,2]
[349256094,1737078640271,-611.72526973,0.00027297,2]
[349256095,1737078640284,-277.62589961,0.00027297,2]
[349256096,1737078640297,-166.2507337,0.00027297,2]
[349256097,1737078640308,-200.0,0.00027298,2]
[349256098,1737078640320,-150.0,0.00027299,2]
[349256099,1737078640331,-151.25,0.000273,20]
[349256100,1737078640341,-150.0,0.00027308,2]
[349256101,1737078640351,-150.0,0.0002731,2]
[349256102,1737078640360,-150.0,0.00027312,2]
[349256103,1737078640370,-150.0,0.00027312,2]
[349256104,1737078640379,-1000.0,0.00027313,2]
[349256105,1737078640388,-522.64632571,0.00027313,2]
[349256106,1737078640398,-1000.0,0.00027314,2]
[349256107,1737078640408,-4218.60929359,0.00027314,2]
[349256108,1737078640418,-27560.83422118,0.00027315,2]
[349256109,1737078640428,-27560.83422118,0.00027316,2]
[349256110,1737078640437,-150.0,0.00027319,2]
[349256111,1737078640447,-150.0,0.00027319,2]
[349256112,1737078640457,-21338.56499355,0.0002732,2]
[349256113,1737078640790,-150.0,0.00027138,2]
[349256114,1737078640800,-101.43202999,0.00027146,2]
[349256115,1737078640812,-48.56797001,0.00027146,2]
[349256116,1737078640821,-150.0,0.00027164,2]
[349256117,1737078640831,-150.0,0.00027167,2]
[349256118,1737078640841,-150.0,0.0002723,2]
[349256119,1737078640851,-150.0,0.00027233,2]
[349256120,1737078640860,-150.0,0.0002726,2]
[349256121,1737078640870,-150.0,0.00027293,2]
[349256122,1737078640880,-3668.25702909,0.0002732,2]
[349256123,1737078640892,-862.74156776,0.0002732,2]
[349256124,1737078640904,-1691.27063078,0.0002732,2]
[349256125,1737078640914,-150.0,0.0002732,2]
[349256126,1737078640925,-150.0,0.00027321,2]
[349256127,1737078640935,-699.38139595,0.00027322,2]
[349256128,1737078640947,-300.61860405,0.00027322,2]
[349256129,1737078640957,-5450.204826,0.00027324,2]
[349256130,1737078640970,-101754.51786618,0.00027324,2]
[349256149,1737078643295,-150.0,0.00027122,2]
[349256152,1737078643304,-150.0,0.00027134,2]
[349256156,1737078643315,-150.0,0.00027135,2]
[349256158,1737078643327,-150.0,0.0002715,2]
[349256160,1737078643336,-150.0,0.00027153,2]
[349256161,1737078643345,-150.0,0.00027158,2]
[349256163,1737078643356,-150.0,0.00027179,2]
[349256164,1737078643365,-150.0,0.00027203,2]
[349256165,1737078643375,-150.0,0.00027208,2]
[349256166,1737078643385,-150.0,0.00027224,2]
[349256167,1737078643395,-150.0,0.00027227,2]
[349256168,1737078643405,-150.0,0.00027232,2]
[349256169,1737078643414,-150.0,0.00027241,2]
[349256170,1737078643424,-150.0,0.00027244,2]
[349256171,1737078643434,-150.0,0.00027261,2]
[349256172,1737078643444,-150.0,0.00027264,2]
[349256173,1737078643453,-150.0,0.0002729,2]
[349256174,1737078643463,-150.0,0.00027301,2]
[349256175,1737078643473,-150.0,0.00027302,2]
[349256176,1737078643483,-128471.71218275,0.00027324,2]
[349256177,1737078643493,-150.0,0.00027325,2]
[349256178,1737078643502,-1000.0,0.00027327,2]
[349256179,1737078643513,-150.0,0.00027328,2]
[349256180,1737078643522,-4218.60929359,0.0002733,2]
[349256181,1737078643532,-150.0,0.0002733,2]
[349256182,1737078643544,-150.0,0.0002733,2]
[349256183,1737078643554,-150.0,0.0002733,2]
[349256184,1737078643563,-10577.19937327,0.00027332,2]
[349256185,1737078643573,-10577.19937327,0.00027335,2]
[349256186,1737078643583,-4218.60929359,0.00027336,2]
[349256187,1737078643592,-27560.83422118,0.00027337,2]
[349256188,1737078643602,-150.0,0.00027339,2]
[349256189,1737078643612,-150.0,0.00027339,2]
[349256190,1737078643621,-150.0,0.0002734,2]
[349256191,1737078643631,-11928.68328644,0.00027342,2]
[349256192,1737078643641,-150.0,0.00027344,2]
[349256193,1737078643650,-150.0,0.00027344,2]
[349256194,1737078643660,-150.0,0.00027347,2]
[349256195,1737078643669,-150.0,0.00027348,2]
[349256196,1737078643679,-4218.60929359,0.00027349,2]
[349256197,1737078643688,-150.0,0.00027351,2]
[349256198,1737078643698,-150.0,0.00027351,2]
[349256199,1737078643708,-150.0,0.00027352,2]
[349256201,1737078643718,-150.0,0.00027353,2]
[349256202,1737078643727,-150.0,0.00027355,2]
[349256203,1737078643736,-150.0,0.00027356,2]
[349256204,1737078643746,-150.0,0.00027357,2]
[349256205,1737078643755,-150.0,0.00027358,2]
[349256206,1737078643765,-150.0,0.0002736,2]
[349256207,1737078643774,-4218.60929359,0.0002736,2]
[349256208,1737078643783,-150.0,0.00027363,2]
[349256209,1737078643793,-200.0,0.00027367,2]
[349256210,1737078643802,-150.0,0.00027367,2]
[349256211,1737078643812,-150.0,0.0002737,2]
[349256212,1737078643821,-150.0,0.0002737,2]
[349256213,1737078643831,-235676.43487493,0.0002737,2]
[349256214,1737078643842,-504.75041543,0.00027373,2]
[349256215,1737078643851,-153.30561424,0.00027373,2]
[349256216,1737078643860,-500.0,0.00027373,2]
[349256217,1737078643870,-285.05173456,0.00027373,2]
[349256218,1737078643880,-160.91315691,0.00027373,2]
[349256219,1737078643890,-262.47423126,0.00027373,2]
[349256220,1737078643899,-150.0,0.00027374,2]
[349256221,1737078643909,-11928.68328644,0.00027375,2]
[349256222,1737078643919,-1000.0,0.00027375,2]
[349256223,1737078643929,-522.64632571,0.00027377,2]
[349256224,1737078643939,-1000.0,0.00027378,2]
[349256225,1737078643949,-12009.7828738,0.00027378,2]
[349256226,1737078643958,-3600.9417311,0.00027378,2]
[349256227,1737078643969,-216.69002473,0.0002738,2]
[349256228,1737078643979,-121540.28701489,0.00027382,2]
[349256229,1737078643993,-854.55749319,0.00027382,2]
[349256230,1737078644010,-16570.2222918,0.00027382,2]
[349256231,1737078644046,-150.0,0.00027132,2]
[349256232,1737078644057,-8500.88318621,0.00027382,2]
[349256233,1737078644069,-2494.99999999,0.00027382,2]
[349256235,1737078644112,-150.0,0.0002725,2]
[349256236,1737078644122,-150.0,0.00027294,2]
[349256237,1737078644131,-1673.4,0.00027382,2]
[349256239,1737078644818,-150.0,0.00027132,2]
[349256240,1737078644828,-150.0,0.00027133,2]
[349256241,1737078644838,-150.0,0.00027144,2]
[349256242,1737078644848,-150.0,0.00027164,2]
[349256243,1737078644858,-150.0,0.00027166,2]
[349256244,1737078644869,-150.0,0.00027181,2]
[349256245,1737078644879,-150.0,0.0002719,2]
[349256246,1737078644889,-150.0,0.0002719,2]
[349256247,1737078644899,-150.0,0.00027192,2]
[349256248,1737078644909,-150.0,0.00027194,2]
[349256249,1737078644919,-150.0,0.00027194,2]
[349256250,1737078644930,-150.0,0.00027194,2]
[349256251,1737078644940,-150.0,0.00027208,2]
[349256252,1737078644949,-107.39913524,0.00027209,2]
[349256253,1737078644962,-42.60086476,0.00027209,2]
[349256254,1737078644971,-150.0,0.00027215,2]
[349256255,1737078644981,-127.06451103,0.00027229,2]
[349256256,1737078645014,-22.93548897,0.00027229,2]
[349256257,1737078645023,-150.0,0.00027265,2]
[349256258,1737078645033,-150.0,0.0002727,2]
[349256259,1737078645042,-150.0,0.00027273,2]
[349256260,1737078645052,-150.0,0.00027275,2]
[349256261,1737078645061,-150.0,0.00027276,2]
[349256262,1737078645071,-150.0,0.00027291,2]
[349256263,1737078645081,-150.0,0.00027297,2]
[349256264,1737078645091,-150.0,0.00027315,2]
[349256265,1737078645101,-150.0,0.00027355,2]
[349256267,1737078645111,-150.0,0.00027381,2]
[349256268,1737078645122,-84042.08488885,0.00027382,2]
[349256269,1737078645132,-522.64632571,0.00027385,2]
[349256270,1737078645142,-150.0,0.00027386,2]
[349256271,1737078645151,-1009.81,0.00027387,2]
[349256272,1737078645162,-1009.81,0.00027387,2]
[349256273,1737078645171,-1009.81,0.00027387,2]
[349256274,1737078645181,-1009.81,0.00027387,2]
[349256275,1737078645191,-1009.81,0.00027387,2]
[349256276,1737078645200,-1000.0,0.00027388,2]
[349256277,1737078645208,-150.0,0.00027388,2]
[349256278,1737078645216,-2880.3553785,0.00027389,2]
[349256279,1737078645225,-9359.8068142,0.00027389,2]
[349256280,1737078645234,-150.0,0.00027389,2]
[349256281,1737078645243,-150.0,0.00027391,2]
[349256282,1737078645253,-150.0,0.00027393,2]
[349256283,1737078645262,-150.0,0.00027394,2]
[349256284,1737078645272,-150.0,0.00027394,2]
[349256285,1737078645292,-11928.68328644,0.00027395,2]
[349256286,1737078645302,-500.0,0.00027396,2]
[349256287,1737078645311,-500.0,0.00027396,2]
[349256288,1737078645320,-668.50424184,0.00027396,2]
[349256289,1737078645335,-777.38855297,0.00027397,30]
[349256290,1737078645344,-152.4,0.00027397,30]
[349256291,1737078645354,-325.876743,0.00027397,3]
[349256292,1737078645363,-325.876743,0.00027397,3]
[349256293,1737078645373,-325.876743,0.00027397,3]
[349256294,1737078645385,-325.876743,0.00027397,3]
[349256295,1737078645395,-325.876743,0.00027397,3]
[349256296,1737078645405,-325.876743,0.00027397,3]
[349256297,1737078645414,-325.876743,0.00027397,3]
[349256298,1737078645424,-325.876743,0.00027397,3]
[349256299,1737078645433,-325.876743,0.00027397,3]
[349256300,1737078645443,-325.876743,0.00027397,3]
[349256301,1737078645453,-500.0,0.00027397,2]
[349256302,1737078645462,-500.25251813,0.00027397,2]
[349256303,1737078645472,-473.38391,0.00027397,3]
[349256304,1737078645482,-473.38391,0.00027397,3]
[349256305,1737078645492,-473.38391,0.00027397,3]
[349256306,1737078645502,-473.38391,0.00027397,3]
[349256307,1737078645512,-473.38391,0.00027397,3]
[349256308,1737078645521,-473.38391,0.00027397,3]
[349256309,1737078645531,-473.38391,0.00027397,3]
[349256310,1737078645542,-473.38391,0.00027397,3]
[349256311,1737078645551,-473.38391,0.00027397,3]
[349256312,1737078645561,-473.38391,0.00027397,3]
[349256313,1737078645571,-183.26774,0.00027397,3]
[349256314,1737078645581,-183.26774,0.00027397,3]
[349256315,1737078645591,-183.26774,0.00027397,3]
[349256316,1737078645601,-156.541209,0.00027397,3]
[349256317,1737078645612,-156.541209,0.00027397,3]
[349256318,1737078645622,-156.541209,0.00027397,3]
[349256319,1737078645632,-2000.0,0.00027397,2]
[349256320,1737078645642,-200.0,0.00027397,2]
[349256321,1737078645651,-151.0,0.00027397,7]
[349256322,1737078645661,-249.925,0.00027397,7]
[349256323,1737078645670,-520.64567731,0.00027397,3]
[349256324,1737078645680,-151.423495,0.00027397,7]
[349256325,1737078645689,-505.97688647,0.00027397,3]
[349256326,1737078645699,-516.31803168,0.00027397,3]
[349256327,1737078645708,-515.55136693,0.00027397,3]
[349256328,1737078645719,-500.0,0.00027397,3]
[349256329,1737078645728,-518.23071795,0.00027397,3]
[349256330,1737078645738,-508.89630669,0.00027397,3]
[349256331,1737078645748,-517.60468813,0.00027397,3]
[349256332,1737078645758,-517.89037124,0.00027397,3]
[349256333,1737078645768,-510.61742291,0.00027397,3]
[349256334,1737078645779,-517.0174676,0.00027397,3]
[349256335,1737078645789,-452.63604654,0.00027397,3]
[349256336,1737078645799,-518.88348246,0.00027397,3]
[349256337,1737078645808,-519.51579063,0.00027397,3]
[349256338,1737078645818,-500.0,0.00027397,3]
[349256339,1737078645828,-500.0,0.00027397,3]
[349256340,1737078645838,-500.0,0.00027397,3]
[349256341,1737078645848,-500.0,0.00027397,3]
[349256342,1737078645857,-500.0,0.00027397,3]
[349256343,1737078645867,-500.0,0.00027397,3]
[349256344,1737078645877,-500.0,0.00027397,3]
[349256345,1737078645887,-176.40782223,0.00027397,3]
[349256346,1737078645898,-500.0,0.00027397,3]
[349256347,1737078645908,-500.0,0.00027397,3]
[349256348,1737078645917,-500.0,0.00027397,3]
[349256349,1737078645926,-294.99689032,0.00027397,3]
[349256350,1737078645937,-182.71370894,0.00027397,3]
[349256351,1737078645947,-517.75544971,0.00027397,3]
[349256352,1737078645956,-512.63218626,0.00027397,3]
[349256353,1737078645966,-606.74528833,0.00027397,3]
[349256355,1737078646030,-200.0,0.00027397,2]
[349256357,1737078646040,-314.81088358,0.00027397,3]
[349256359,1737078646050,-151.0,0.00027397,7]
[349256361,1737078646060,-220.435144,0.00027397,7]
[349256362,1737078646070,-500.0,0.00027397,3]
[349256363,1737078646079,-517.71731568,0.00027397,3]
[349256364,1737078646089,-564.83,0.00027397,3]
[349256365,1737078646098,-564.83,0.00027397,3]
[349256366,1737078646108,-564.83,0.00027397,3]
[349256367,1737078646118,-564.83,0.00027397,3]
[349256368,1737078646128,-564.83,0.00027397,3]
[349256369,1737078646137,-564.83,0.00027397,3]
[349256370,1737078646148,-564.83,0.00027397,3]
[349256371,1737078646157,-564.83,0.00027397,3]
[349256372,1737078646166,-564.83,0.00027397,3]
[349256373,1737078646176,-564.83,0.00027397,3]
[349256374,1737078646185,-564.83,0.00027397,3]
[349256375,1737078646195,-564.83,0.00027397,3]
[349256376,1737078646204,-564.83,0.00027397,3]
[349256377,1737078646212,-564.83,0.00027397,3]
[349256378,1737078646220,-564.83,0.00027397,3]
[349256379,1737078646229,-564.83,0.00027397,3]
[349256380,1737078646238,-564.83,0.00027397,3]
[349256381,1737078646247,-564.83,0.00027397,3]
[349256382,1737078646258,-564.83,0.00027397,3]
[349256383,1737078646268,-564.83,0.00027397,3]
[349256384,1737078646280,-564.83,0.00027397,3]
[349256385,1737078646289,-564.83,0.00027397,3]
[349256386,1737078646299,-564.83,0.00027397,3]
[349256387,1737078646308,-564.87090973,0.00027397,3]
[349256388,1737078646317,-513.26955115,0.00027397,3]
[349256389,1737078646329,-511.45731704,0.00027397,3]
[349256390,1737078646338,-4850.18,0.00027397,3]
[349256391,1737078646348,-4850.18,0.00027397,3]
[349256392,1737078646358,-4850.18,0.00027397,3]
[349256393,1737078646368,-4850.18,0.00027397,3]
[349256394,1737078646377,-4850.18,0.00027397,3]
[349256395,1737078646387,-4850.18,0.00027397,3]
[349256396,1737078646397,-4850.18,0.00027397,3]
[349256397,1737078646406,-151.0,0.00027397,7]
[349256398,1737078646417,-151.0,0.00027397,7]
[349256399,1737078646427,-151.0,0.00027397,7]
[349256400,1737078646438,-151.0,0.00027397,7]
[349256401,1737078646448,-4850.18,0.00027397,3]
[349256402,1737078646458,-151.0,0.00027397,7]
[349256403,1737078646468,-151.0,0.00027397,7]
[349256404,1737078646477,-151.0,0.00027397,7]
[349256405,1737078646487,-4850.18,0.00027397,3]
[349256406,1737078646498,-151.0,0.00027397,7]
[349256407,1737078646508,-151.0,0.00027397,7]
[349256408,1737078646517,-4850.18,0.00027397,3]
[349256409,1737078646527,-275.081857,0.00027397,7]
[349256410,1737078646536,-4850.18,0.00027397,3]
[349256411,1737078646548,-516.61231911,0.00027397,3]
[349256412,1737078646558,-151.188659,0.00027397,7]
[349256413,1737078646568,-3286.63849725,0.00027397,3]
[349256414,1737078646616,-257.04,0.00027397,3]
[349256415,1737078646628,-1306.50150275,0.00027397,3]
[349256416,1737078646638,-4850.18,0.00027397,3]
[349256417,1737078646647,-4850.18,0.00027397,3]
[349256418,1737078646657,-500.0,0.00027397,3]
[349256419,1737078646667,-500.0,0.00027397,3]
[349256420,1737078646676,-4850.18,0.00027397,3]
[349256421,1737078646686,-510.21153096,0.00027397,3]
[349256422,1737078646696,-4850.18,0.00027397,3]
[349256423,1737078646705,-151.0,0.00027397,7]
[349256424,1737078646715,-500.0,0.00027397,3]
[349256425,1737078646724,-527.72159309,0.00027397,3]
[349256426,1737078646734,-152.945439,0.00027397,7]
[349256427,1737078646743,-4850.18,0.00027397,3]
[349256428,1737078646753,-543.23416459,0.00027397,3]
[349256429,1737078646762,-1357.48149661,0.00027397,3]
[349256431,1737078646778,-3492.69850339,0.00027397,3]
[349256433,1737078646788,-4850.18,0.00027397,3]
[349256434,1737078646797,-519.56697454,0.00027397,3]
[349256436,1737078646807,-1257.61485335,0.00027397,3]
[349256442,1737078646846,-150.0,0.00027149,2]
[349256444,1737078646855,-150.0,0.0002717,2]
[349256446,1737078646865,-150.0,0.00027192,2]
[349256448,1737078646875,-150.0,0.00027297,2]
[349256450,1737078646884,-451.3558125,0.00027397,3]
[349256454,1737078646915,-150.0,0.00027197,2]
[349256456,1737078646925,-150.0,0.00027317,2]
[349256458,1737078646934,-150.0,0.00027359,2]
[349256460,1737078646943,-150.0,0.00027386,2]
[349256462,1737078646952,-3141.20933415,0.00027397,3]
[349256464,1737078646961,-4850.18,0.00027397,3]
[349256466,1737078646971,-4850.18,0.00027397,3]
[349256468,1737078646981,-4850.18,0.00027397,3]
[349256470,1737078646990,-509.14604977,0.00027397,3]
[349256472,1737078646999,-4850.39439124,0.00027397,3]
[349256474,1737078647008,-504.52114522,0.00027397,3]
[349256476,1737078647018,-519.26565542,0.00027397,3]
[349256478,1737078647027,-538.0663921,0.00027397,3]
[349256480,1737078647037,-517.08514269,0.00027397,3]
[349256482,1737078647046,-535.30140147,0.00027397,3]
[349256484,1737078647056,-504.98476894,0.00027397,3]
[349256486,1737078647065,-512.59814185,0.00027397,3]
[349256488,1737078647075,-547.21384927,0.00027397,3]
[349256490,1737078647086,-506.02902315,0.00027397,3]
[349256492,1737078647095,-516.2913715,0.00027397,3]
[349256494,1737078647104,-506.12697246,0.00027397,3]
[349256496,1737078647114,-507.83085327,0.00027397,3]
[349256498,1737078647123,-504.05975768,0.00027397,3]
[349256500,1737078647132,-518.01132634,0.00027397,3]
[349256501,1737078647142,-505.12326326,0.00027397,3]
[349256503,1737078647151,-151.835461,0.00027397,7]
[349256505,1737078647161,-517.72759196,0.00027397,3]
[349256508,1737078647171,-151.0,0.00027397,7]
[349256510,1737078647180,-192.083369,0.00027397,7]
[349256512,1737078647190,-508.14308274,0.00027397,3]
[349256514,1737078647199,-2112.96,0.00027397,3]
[349256516,1737078647209,-508.08370976,0.00027397,3]
[349256518,1737078647218,-2112.96,0.00027397,3]
[349256520,1737078647227,-2112.96,0.00027397,3]
[349256522,1737078647237,-2112.96,0.00027397,3]
[349256524,1737078647246,-2112.96,0.00027397,3]
[349256526,1737078647255,-2112.96,0.00027397,3]
[349256528,1737078647265,-2112.96,0.00027397,3]
[349256530,1737078647275,-2112.96,0.00027397,3]
[349256532,1737078647288,-2112.96,0.00027397,3]
[349256534,1737078647297,-2112.96,0.00027397,3]
[349256536,1737078647307,-500.0,0.00027397,3]
[349256538,1737078647316,-2112.96,0.00027397,3]
[349256540,1737078647326,-2112.96,0.00027397,3]
[349256542,1737078647336,-2112.96,0.00027397,3]
[349256544,1737078647345,-519.10457506,0.00027397,3]
[349256546,1737078647358,-2112.96,0.00027397,3]
[349256548,1737078647367,-1843.90170429,0.00027397,3]
[349256551,1737078647392,-269.05829571,0.00027397,3]
[349256553,1737078647401,-2112.96,0.00027397,3]
[349256555,1737078647410,-2112.96,0.00027397,3]
[349256557,1737078647420,-2112.96,0.00027397,3]
[349256559,1737078647429,-2112.96,0.00027397,3]
[349256561,1737078647439,-2112.96,0.00027397,3]
[349256563,1737078647448,-2112.96,0.00027397,3]
[349256565,1737078647457,-2112.96,0.00027397,3]
[349256567,1737078647467,-2112.96,0.00027397,3]
[349256569,1737078647476,-506.24936906,0.00027397,3]
[349256571,1737078647486,-2113.10899963,0.00027397,3]
[349256573,1737078647496,-501.87837465,0.00027397,3]
[349256575,1737078647505,-500.0,0.00027397,3]
[349256577,1737078647514,-503.27479138,0.00027397,3]
[349256579,1737078647524,-511.43465383,0.00027397,3]
[349256581,1737078647533,-500.0,0.00027397,3]
[349256583,1737078647543,-500.0,0.00027397,3]
[349256585,1737078647553,-515.04394732,0.00027397,3]
[349256587,1737078647562,-172.00608535,0.00027397,3]
[349256589,1737078647571,-1713.46,0.00027397,3]
[349256591,1737078647581,-1713.46,0.00027397,3]
[349256593,1737078647590,-1677.34548307,0.00027397,3]
[349256621,1737078647913,-150.0,0.00027105,2]
[349256623,1737078647923,-150.0,0.00027128,2]
[349256625,1737078647932,-150.0,0.00027139,2]
[349256627,1737078647942,-150.0,0.00027143,2]
[349256629,1737078647952,-150.0,0.00027144,2]
[349256631,1737078647962,-150.0,0.00027145,2]
[349256633,1737078647971,-150.0,0.00027154,2]
[349256634,1737078647981,-150.0,0.00027158,2]
[349256635,1737078647991,-150.0,0.00027173,2]
[349256636,1737078648001,-150.0,0.0002719,2]
[349256637,1737078648010,-150.0,0.00027194,2]
[349256638,1737078648019,-150.0,0.00027194,2]
[349256639,1737078648028,-150.0,0.00027198,2]
[349256640,1737078648038,-150.0,0.00027198,2]
[349256641,1737078648047,-150.0,0.00027208,2]
[349256642,1737078648057,-59.92163555,0.00027215,2]
[349256643,1737078648068,-90.07836445,0.00027215,2]
[349256644,1737078648078,-150.0,0.00027217,2]
[349256645,1737078648088,-150.0,0.00027236,2]
[349256646,1737078648098,-150.0,0.00027237,2]
[349256647,1737078648108,-150.0,0.0002724,2]
[349256648,1737078648118,-150.0,0.00027243,2]
[349256649,1737078648127,-150.0,0.00027244,2]
[349256650,1737078648136,-150.0,0.00027281,2]
[349256651,1737078648146,-150.0,0.00027287,2]
[349256652,1737078648155,-150.0,0.0002729,2]
[349256653,1737078648164,-150.0,0.00027308,2]
[349256654,1737078648175,-150.0,0.00027319,2]
[349256655,1737078648185,-150.0,0.00027333,2]
[349256656,1737078648197,-150.0,0.00027337,2]
[349256657,1737078648207,-150.0,0.00027354,2]
[349256658,1737078648216,-150.0,0.00027355,2]
[349256659,1737078648226,-150.0,0.00027362,2]
[349256660,1737078648236,-150.0,0.00027364,2]
[349256661,1737078648246,-150.0,0.00027365,2]
[349256662,1737078648256,-150.0,0.00027374,2]
[349256663,1737078648265,-150.0,0.00027377,2]
[349256664,1737078648277,-36.11451693,0.00027397,3]
[349256665,1737078648289,-1102.07667643,0.00027397,3]
[349256666,1737078648303,-611.38332357,0.00027397,3]
[349256667,1737078648313,-1140.78581681,0.00027397,3]
[349256668,1737078648326,-572.67418319,0.00027397,3]
[349256669,1737078648335,-1291.93557525,0.00027397,3]
[349256670,1737078648347,-421.52442475,0.00027397,3]
[349256671,1737078648359,-196.84569466,0.00027397,3]
[349256672,1737078648371,-441.61753409,0.00027397,3]
[349256673,1737078648383,-914.80709998,0.00027397,3]
[349256674,1737078648394,-160.18967127,0.00027397,3]
[349256675,1737078648404,-1553.83289993,0.00027397,3]
[349256676,1737078648415,-159.62710007,0.00027397,3]
[349256677,1737078648426,-1713.46,0.00027397,3]
[349256678,1737078648436,-1713.46,0.00027397,3]
[349256679,1737078648446,-1348.45289993,0.00027397,3]
[349256680,1737078648478,-150.0,0.00027142,2]
[349256681,1737078648488,-208.6593002,0.00027397,3]
[349256682,1737078648500,-156.34779987,0.00027397,3]
[349256683,1737078648510,-1543.45436602,0.00027397,3]
[349256684,1737078648522,-170.00563398,0.00027397,3]
[349256685,1737078648532,-1713.46,0.00027397,3]
[349256686,1737078648542,-1713.46,0.00027397,3]
[349256687,1737078648553,-904.45085664,0.00027397,3]
[349256688,1737078648566,-610.19008711,0.00027397,3]
[349256689,1737078648582,-198.81905625,0.00027397,3]
[349256690,1737078648592,-230.96,0.00027397,3]
[349256691,1737078648601,-135.35584575,0.00027397,3]
[349256715,1737079117266,155.9,0.00010137,2]
[349256719,1737079627130,-160.59,0.00012329,2]
[349256720,1737079627157,-176.12,0.00016712,2]
[349256721,1737079627181,-1477.87816786,0.00020999,2]
[349256724,1737079750110,-150.0,0.00016438,2]
[349256725,1737079750131,-250.0,0.00017123,2]
[349256726,1737079750153,-350.16603648,0.00017808,2]
[349256727,1737079750174,-2564.21883214,0.00020999,2]
[349256728,1737079750194,-178.97,0.00020999,2]
[349256729,1737079750217,-300.0,0.00020999,2]
[349256730,1737079750238,-300.0,0.00020999,2]
[349256732,1737079750259,-20103.86,0.00021,2]
[349256733,1737079750278,-199.0,0.00022842,2]
[349256734,1737079750300,-420.0,0.00022842,2]
[349256735,1737079750322,-848.83,0.00024128,2]
[349256736,1737079756628,9674.0453488,0.00022826,2]
[349256740,1737079801291,300.0,0.00023614,2]
[349256748,1737079832497,-2363.16128835,0.00023615,2]
[349256749,1737079832507,-6149.82116584,0.00023615,2]
[349256750,1737079832519,-2217.00620401,0.00023615,2]
[349256751,1737079832528,-3429.163401,0.00024897,2]
[349256752,1737079832538,-1443.67583726,0.00024914,2]
[349256753,1737079832550,-762.17542217,0.00024914,2]
[349256754,1737079832562,-167.14874057,0.00024914,2]